Workbook

Sheet Points
B1: Key Points
B3: You can compute derived debt beta from historic credit spreads and debt to capital ratios. These are nothing like typical Bd's applied
B5: The standard formula for computing WACC and Bu requires the beta on debt and cost of debt. Without taxes -- Bu = Debt/EV * debt Beta + Equity/EV * equity Beta
B7: Given that the Bu is in theory independent of the capital structure without taxes, you can derive Be as a function of Bu -- Be = (Bu - Debt/EV * Bd)/(Equity/EV)
B9: In the above formula, if the Bd is higher, the Be and the cost of equity is LOWER
B11: As to cost of debt is observed unlike the cost of equity, the Bd can be derived from the credit spread. CS = Bd * EMRP and Bd = CS/EMRP
B13: The credit spread and the implied Bd vary with the cost of capital. You can use S&P standards to estimate Bd. This can be done on an aggregate basis or by business risk
B15: Once you have the Bd, you can interpolate and lookup to vary the Bd according to the capital structure
B17: You can then correct the computation of Bu -- unlevered beta for a group of companies
B19: You can re-lever with and without taxes

Sheet Data on Credit Spreads
B2: Credit Spreads from Interest Rate File
G5: 0.04
E6: Last | F6: Average | G6: EMRP | H6: Debt Beta:
H7: Spread/EMRP
B8: Merrill Lynch B Adj Spread | E8: 5.02 | F8: 5.508101266 | G8: =$G$5 -> 0.04 | H8: =F8/100/G8 -> 1.377025316 | J8: =_xlfn.FORMULATEXT(H8) -> =F8/100/G8
B9: Merrill Lynch BB Adj Spread | E9: 3.23 | F9: 3.868101266 | G9: =$G$5 -> 0.04 | H9: =F9/100/G9 -> 0.9670253165 | J9: =F9/100/G9
B10: Merrill Lynch BBB Adj Spread | E10: 1.85 | F10: 2.14164557 | G10: 0.04 | H10: 0.5354113924 | J10: =F10/100/G10
B11: Merrill Lynch A Adj Spread | E11: 1.13 | F11: 1.359113924 | G11: 0.04 | H11: 0.339778481 | J11: =F11/100/G11
B12: Merrill Lynch AA Adj Spread | E12: 0.87 | F12: 1.021772152 | G12: 0.04 | H12: 0.255443038 | J12: =F12/100/G12
B13: Merrill Lynch AAA Adj Spread | E13: 0.84 | F13: 0.7048101266 | G13: 0.04 | H13: 0.1762025316 | J13: =F13/100/G13
B16: Credit Spread = Debt Beta x EMRP
B18: Debt Beta = Credit Spread/EMRP

Sheet Ratings and Debt to Cap
J2: Business Profile | M2: 2
K4: AAA | L4: AA Low | M4: AA High | N4: A Low | O4: A High | P4: BBB Low | Q4: BBB high | R4: BB High | S4: BB Low | T4: BB
J5: 1 | L5: 0.48 | M5: 0.55 | N5: 0.55 | O5: 0.6 | P5: 0.6 | Q5: 0.7 | R5: 1 | S5: 1
J6: 2 | L6: 0.45 | M6: 0.52 | N6: 0.52 | O6: 0.58 | P6: 0.58 | Q6: 0.68 | R6: 1 | S6: 1
J7: 3 | L7: 0.42 | M7: 0.5 | N7: 0.45 | O7: 0.55 | P7: 0.55 | Q7: 0.65 | R7: 0.65 | S7: 0.7
J8: 4 | L8: 0.38 | M8: 0.45 | N8: 0.42 | O8: 0.52 | P8: 0.52 | Q8: 0.62 | R8: 0.62 | S8: 0.68
J9: 5 | L9: 0.35 | M9: 0.42 | N9: 0.4 | O9: 0.5 | P9: 0.5 | Q9: 0.6 | R9: 0.6 | S9: 0.65
J10: 6 | L10: 0.32 | M10: 0.4 | N10: 0.38 | O10: 0.48 | P10: 0.48 | Q10: 0.58 | R10: 0.58 | S10: 0.62
J11: 7 | L11: 0.3 | M11: 0.38 | N11: 0.35 | O11: 0.45 | P11: 0.45 | Q11: 0.55 | R11: 0.55 | S11: 0.6
J12: 8 | L12: 0.25 | M12: 0.35 | N12: 0.32 | O12: 0.42 | P12: 0.42 | Q12: 0.52 | R12: 0.52 | S12: 0.58
J13: 9 | L13: 0 | M13: 0 | N13: 0.25 | O13: 0.4 | P13: 0.4 | Q13: 0.5 | R13: 0.5 | S13: 0.55
J14: 10 | L14: 0 | M14: 0 | N14: 0 | O14: 0.35 | P14: 0.35 | Q14: 0.48 | R14: 0.48 | S14: 0.52
J16: =INDEX(J5:J14,$M$2) -> 2 | K16: 0 | L16: =INDEX(L5:L14,$M$2) -> 0.45 | M16: =INDEX(M5:M14,$M$2) -> 0.52 | N16: =INDEX(N5:N14,$M$2) -> 0.52 | O16: =INDEX(O5:O14,$M$2) -> 0.58 | P16: =INDEX(P5:P14,$M$2) -> 0.58 | Q16: 0.68 | R16: =INDEX(R5:R14,$M$2) -> 1 | S16: =INDEX(S5:S14,$M$2) -> 1
M19: Surplus Cash | N19: AAA Start | O19: AA Start | P19: A Start | Q19: BBB Start | R19: BB Start | S19: B Start
L20: Debt to Capital | M20: -1 | N20: 0 | O20: =L16 -> 0.45 | P20: =N16 -> 0.52 | Q20: =P16 -> 0.58 | R20: =R16 -> 1 | S20: =S16 -> 1
H21: P/B | I21: 2 | L21: Market Debt/Cap | M21: -1 | N21: =N20/$I$21 -> 0 | O21: =O20/$I$21 -> 0.225 | P21: 0.26 | Q21: 0.29 | R21: 0.5 | S21: 0.5
L22: Debt Beta | M22: 0 | N22: ='Data on Credit Spreads'!H13 -> 0.1762025316 | O22: ='Data on Credit Spreads'!H12 -> 0.255443038 | P22: ='Data on Credit Spreads'!H11 -> 0.339778481 | Q22: ='Data on Credit Spreads'!H10 -> 0.5354113924 | R22: ='Data on Credit Spreads'!H9 -> 0.9670253165 | S22: ='Data on Credit Spreads'!H8 -> 1.377025316
M24: AAA | N24: AA | O24: A | P24: BBB | Q24: BB | R24: B | S24: CCC
L25: =L20 -> Debt to Capital | M25: 0.12 | N25: 0.283 | O25: 0.375 | P25: 0.425 | Q25: 0.537 | R25: 0.759 | S25: 1.135
L26: =L22 -> Debt Beta | M26: =N22 -> 0.1762025316 | N26: 0.255443038 | O26: 0.339778481 | P26: 0.5354113924 | Q26: 0.9670253165 | R26: 1.377025316
L29: Interpolate Lookup
N30: Business Risk | P30: Simple
L31: Debt to Capital | N31: 0.6 | P31: =N31 -> 0.6
L33: Lookup | N33: =LOOKUP(N31,N20:S20,N22:S22) -> 0.5354113924 | P33: =LOOKUP(P31,M25:R25,M26:R26) -> 0.9670253165
L34: Interpolate Linear | N34: =interpolate_look_up_linear(N31,N20:S20,N22:S22) -> 0.5559644364 | P34: =interpolate_look_up_linear(P31,M25:S25,M26:S26) -> 1.083376668
L35: Interpolate Comp | N35: =interpolate_look_up(N31,N20:S20,N22:S22) -> 0.5506983935 | P35: =interpolate_look_up(P31,M25:S25,M26:S26) -> 1.069054418

Sheet Ke and Bd - No Tax Case
A2: Begin with No Tax Case
C3: Constant Bd | D3: FALSE | K3: Rf | L3: 0.02
K4: EMRP | L4: ='Data on Credit Spreads'!G5 -> 0.04 | N4: Business Risk | P4: ='Ratings and Debt to Cap'!$M$2 -> 2
C5: Assumed Comparison Companies
G6: Bu = Be * E/Cap + Bd * D/Cap | K6: Bd | L6: Debt/Cap | M6: Bu | N6: Ku | O6: Kd | Q6: Be Implied | R6: Be Computed
P7: Ke
P8: =D23 -> 0.1184 | R8: =#REF!*L4+L3 ->  | S8: =R8*(1-E18)+(D14*L4+L3)*E18 -> 
H9: Bu Comp= | I9: =D12*E19+D14*E18 -> 0.625 | K9: =IF($D$3,$F$14,interpolate_look_up_linear(L9,'Ratings and Debt to Cap'!$N$20:$S$20,'Ratings and Debt to Cap'!$N$22:$S$22)) -> 0.1762025316 | L9: 0 | M9: =$I$12 -> 0.8 | N9: =$L$3+M9*$L$4 -> 0.052 | O9: =K9*$L$4+$L$3 -> 0.02704810127 | P9: =(N9-O9*L9)/(1-L9) -> 0.052 | Q9: =(P9-$L$3)/$L$4 -> 0.8 | R9: =(M9-K9*L9)/(1-L9) -> 0.8
H10: Ku Comp= | I10: =I9*$L$4+L3 -> 0.045 | K10: =IF($D$3,$F$14,interpolate_look_up_linear(L10,'Ratings and Debt to Cap'!$N$20:$S$20,'Ratings and Debt to Cap'!$N$22:$S$22)) -> 0.1938115331 | L10: 0.1 | M10: =$I$12 -> 0.8 | N10: =$L$3+M10*$L$4 -> 0.052 | O10: =K10*$L$4+$L$3 -> 0.02775246132 | P10: =(N10-O10*L10)/(1-L10) -> 0.05469417096 | Q10: =(P10-$L$3)/$L$4 -> 0.8673542741 | R10: =(M10-K10*L10)/(1-L10) -> 0.8673542741
C11: Tax Rate | D11: 0 | K11: =IF($D$3,$F$14,interpolate_look_up_linear(L11,'Ratings and Debt to Cap'!$N$20:$S$20,'Ratings and Debt to Cap'!$N$22:$S$22)) -> 0.2114205345 | L11: 0.2 | M11: 0.8 | N11: 0.052 | O11: 0.02845682138 | P11: 0.05788579466 | Q11: 0.9471448664 | R11: 0.9471448664
C12: Be | D12: ='Cost of Capital from Article'!C27 -> 1 | H12: Bu = | I12: 0.8 | K12: =IF($D$3,$F$14,interpolate_look_up_linear(L12,'Ratings and Debt to Cap'!$N$20:$S$20,'Ratings and Debt to Cap'!$N$22:$S$22)) -> 0.2290295359 | L12: 0.3 | M12: 0.8 | N12: 0.052 | O12: 0.02916118143 | P12: 0.0617880651 | Q12: 1.044701627 | R12: 1.044701627
H13: Ku = | I13: 0.0815 | K13: =IF($D$3,$F$14,interpolate_look_up_linear(L13,'Ratings and Debt to Cap'!$N$20:$S$20,'Ratings and Debt to Cap'!$N$22:$S$22)) -> 0.2466385373 | L13: 0.4 | M13: 0.8 | N13: 0.052 | O13: 0.02986554149 | P13: 0.06675630567 | Q13: 1.168907642 | R13: 1.168907642
C14: Constant Debt Beta | F14: 0.2 | K14: =IF($D$3,$F$14,interpolate_look_up_linear(L14,'Ratings and Debt to Cap'!$N$20:$S$20,'Ratings and Debt to Cap'!$N$22:$S$22)) -> 0.3156826401 | L14: 0.5 | M14: 0.8 | N14: 0.052 | O14: 0.03262730561 | P14: 0.07137269439 | Q14: 1.28431736 | R14: 1.28431736
K15: =IF($D$3,$F$14,interpolate_look_up_linear(L15,'Ratings and Debt to Cap'!$N$20:$S$20,'Ratings and Debt to Cap'!$N$22:$S$22)) -> 0.5559644364 | L15: 0.6 | M15: 0.8 | N15: 0.052 | O15: 0.04223857746 | P15: 0.06664213382 | Q15: 1.166053345 | R15: 1.166053345
K16: =IF($D$3,$F$14,interpolate_look_up_linear(L16,'Ratings and Debt to Cap'!$N$20:$S$20,'Ratings and Debt to Cap'!$N$22:$S$22)) -> 0.6587296564 | L16: 0.7 | M16: 0.8 | N16: 0.052 | O16: 0.04634918626 | P16: 0.06518523207 | Q16: 1.129630802 | R16: 1.129630802
D17: Amount | E17: Percent | F17: Cost | G17: WACC | K17: =IF($D$3,$F$14,interpolate_look_up_linear(L17,'Ratings and Debt to Cap'!$N$20:$S$20,'Ratings and Debt to Cap'!$N$22:$S$22)) -> 0.7614948764 | L17: 0.8 | M17: 0.8 | N17: 0.052 | O17: 0.05045979506 | P17: 0.05816081977 | Q17: 0.9540204943 | R17: 0.9540204943
C18: Debt | D18: =E18*D20 -> 37500 | E18: ='Cost of Capital from Article'!C22 -> 0.375 | F18: =$L$3+$D$14*L4 -> 0.02 | G18: =E18*F18 -> 0.0075 | K18: =IF($D$3,$F$14,interpolate_look_up_linear(L18,'Ratings and Debt to Cap'!$N$20:$S$20,'Ratings and Debt to Cap'!$N$22:$S$22)) -> 0.8642600964 | L18: 0.9 | M18: 0.8 | N18: 0.052 | O18: 0.05457040386 | P18: 0.02886636528 | Q18: 0.221659132 | R18: 0.221659132
C19: Equity | D19: =E19*D20 -> 62500 | E19: =1-E18 -> 0.625 | F19: =G19/E19 -> 0.1184 | G19: =G20-G18 -> 0.074
C20: EV | D20: 100000 | E20: 1 | G20: =I13 -> 0.0815
L21: Ku = D/Cap * Kd + E/Cap * Ke
L22: Ke = (Ku - D/Cap * Kd)/(E/Cap)
C23: Ke | D23: =(I13-(D14*L4+L3)*E18)/E19 -> 0.1184
C24: Be | D24: =(I12-D14*E18)/E19 -> 1.28 | L24: Ke = [Ku-(Bd*EMRP-RF)*D/Cap]/(E/Cap)
L25: Be = (Bu - Bd * D/Cap)/E/Cap
P28: Ke | Q28: Bd
L29: =L9 -> 0 | P29: =P9 -> 0.052 | Q29: =K9 -> 0.1762025316
L30: =L10 -> 0.1 | P30: =P10 -> 0.05469417096 | Q30: =K10 -> 0.1938115331
L31: 0.2 | P31: 0.05788579466 | Q31: 0.2114205345
L32: 0.3 | P32: 0.0617880651 | Q32: 0.2290295359
L33: 0.4 | P33: 0.06675630567 | Q33: 0.2466385373
L34: 0.5 | P34: 0.07137269439 | Q34: 0.3156826401
L35: 0.6 | P35: 0.06664213382 | Q35: 0.5559644364
L36: 0.7 | P36: 0.06518523207 | Q36: 0.6587296564
L37: 0.8 | P37: 0.05816081977 | Q37: 0.7614948764
L38: 0.9 | P38: 0.02886636528 | Q38: 0.8642600964
L43: 0

Sheet Ke and Bd - Tax Case
A2: Begin with No Tax Case
C3: Const | D3: FALSE | K3: Rf | L3: 0.02
K4: EMRP | L4: ='Data on Credit Spreads'!G5 -> 0.04 | N4: Business Risk | P4: ='Ratings and Debt to Cap'!$M$2 -> 2
C5: Assumed Comparison Companies
G6: Bu = Be * E/Cap + Bd * D/Cap | K6: Bd | L6: Mkt Debt/Cap Gross | M6: Bu | N6: Ku | O6: Kd - Providers of Funds | P6: Equity/Cap Gross | Q6: Tax Effect | R6: Equity/Net Capital | S6: Debt/Capital Net | T6: Ke | U6: Be Implied | V6: Be Computed | W6: WACC | X6: Ku Verify | Y6: Ke Verify
Q7: =D11 -> 0.3
T8: =D23 -> 0 | V8: =#REF!*L4+L3 ->  | X8: =V8*(1-E18)+(D14*L4+L3)*E18 -> 
H9: Bu Comp= | I9: =D12*E19+D14*E18 -> 0 | K9: =IF($D$3,$F$14,interpolate_look_up_linear(L9,'Ratings and Debt to Cap'!$N$21:$S$21,'Ratings and Debt to Cap'!$N$22:$S$22)) -> 0.1762025316 | L9: 0 | M9: =$I$12 -> 0.8 | N9: =$L$3+M9*$L$4 -> 0.052 | O9: =K9*$L$4+$L$3 -> 0.02704810127 | P9: =1-L9 -> 1 | Q9: =L9*$Q$7 -> 0 | R9: =P9/(1-Q9) -> 1 | S9: =1-R9 -> 0 | T9: =(N9-S9*O9)/R9 -> 0.052 | U9: =(T9-$L$3)/$L$4 -> 0.8 | V9: =(M9-S9*K9)/R9 -> 0.8 | W9: =T9*P9+L9*O9*(1-$Q$7) -> 0.052 | X9: =T9*R9+S9*O9 -> 0.052 | Y9: =V9*$L$4+$L$3 -> 0.052
H10: Ku Comp= | I10: =I9*$L$4+L3 -> 0.02 | K10: =IF($D$3,$F$14,interpolate_look_up_linear(L10,'Ratings and Debt to Cap'!$N$21:$S$21,'Ratings and Debt to Cap'!$N$22:$S$22)) -> 0.2114205345 | L10: 0.1 | M10: =$I$12 -> 0.8 | N10: =$L$3+M10*$L$4 -> 0.052 | O10: =K10*$L$4+$L$3 -> 0.02845682138 | P10: =1-L10 -> 0.9 | Q10: =L10*$Q$7 -> 0.03 | R10: =P10/(1-Q10) -> 0.9278350515 | S10: =1-R10 -> 0.07216494845 | T10: =(N10-S10*O10)/R10 -> 0.05383113612 | U10: =(T10-$L$3)/$L$4 -> 0.8457784029 | V10: =(M10-S10*K10)/R10 -> 0.8457784029 | W10: =T10*P10+L10*O10*(1-$Q$7) -> 0.05044 | X10: =T10*R10+S10*O10 -> 0.052 | Y10: =V10*$L$4+$L$3 -> 0.05383113612
C11: Tax Rate | D11: 0.3 | K11: =IF($D$3,$F$14,interpolate_look_up_linear(L11,'Ratings and Debt to Cap'!$N$21:$S$21,'Ratings and Debt to Cap'!$N$22:$S$22)) -> 0.2466385373 | L11: 0.2 | M11: 0.8 | N11: 0.052 | O11: 0.02986554149 | P11: 0.8 | Q11: 0.06 | R11: 0.8510638298 | S11: 0.1489361702 | T11: 0.05587353024 | U11: 0.896838256 | V11: 0.896838256 | W11: 0.04888 | X11: 0.052 | Y11: 0.05587353024
C12: Be | D12: ='Cost of Capital from Article'!C27 -> 1 | H12: Bu = | I12: 0.8 | K12: =IF($D$3,$F$14,interpolate_look_up_linear(L12,'Ratings and Debt to Cap'!$N$21:$S$21,'Ratings and Debt to Cap'!$N$22:$S$22)) -> 0.5559644364 | L12: 0.3 | M12: 0.8 | N12: 0.052 | O12: 0.04223857746 | P12: 0.7 | Q12: 0.09 | R12: 0.7692307692 | S12: 0.2307692308 | T12: 0.05492842676 | U12: 0.8732106691 | V12: 0.8732106691 | W12: 0.04732 | X12: 0.052 | Y12: 0.05492842676
H13: Ku = | I13: 0.0815 | K13: =IF($D$3,$F$14,interpolate_look_up_linear(L13,'Ratings and Debt to Cap'!$N$21:$S$21,'Ratings and Debt to Cap'!$N$22:$S$22)) -> 0.7614948764 | L13: 0.4 | M13: 0.8 | N13: 0.052 | O13: 0.05045979506 | P13: 0.6 | Q13: 0.12 | R13: 0.6818181818 | S13: 0.3181818182 | T13: 0.05271876231 | U13: 0.8179690577 | V13: 0.8179690577 | W13: 0.04576 | X13: 0.052 | Y13: 0.05271876231
C14: Constant Debt Beta | F14: 0.1 | K14: =IF($D$3,$F$14,interpolate_look_up_linear(L14,'Ratings and Debt to Cap'!$N$21:$S$21,'Ratings and Debt to Cap'!$N$22:$S$22)) -> 0.9670253165 | L14: 0.5 | M14: 0.8 | N14: 0.052 | O14: 0.05868101266 | P14: 0.5 | Q14: 0.15 | R14: 0.5882352941 | S14: 0.4117647059 | T14: 0.04732329114 | U14: 0.6830822785 | V14: 0.6830822785 | W14: 0.0442 | X14: 0.052 | Y14: 0.04732329114
K15: =IF($D$3,$F$14,interpolate_look_up_linear(L15,'Ratings and Debt to Cap'!$N$21:$S$21,'Ratings and Debt to Cap'!$N$22:$S$22)) -> 0.9670253165 | L15: 0.6 | M15: 0.8 | N15: 0.052 | O15: 0.05868101266 | P15: 0.4 | Q15: 0.18 | R15: 0.487804878 | S15: 0.512195122 | T15: 0.04498493671 | U15: 0.6246234177 | V15: 0.6246234177 | W15: 0.04264 | X15: 0.052 | Y15: 0.04498493671
K16: =IF($D$3,$F$14,interpolate_look_up_linear(L16,'Ratings and Debt to Cap'!$N$21:$S$21,'Ratings and Debt to Cap'!$N$22:$S$22)) -> 0.9670253165 | L16: 0.7 | M16: 0.8 | N16: 0.052 | O16: 0.05868101266 | P16: 0.3 | Q16: 0.21 | R16: 0.3797468354 | S16: 0.6202531646 | T16: 0.04108767932 | U16: 0.5271919831 | V16: 0.5271919831 | W16: 0.04108 | X16: 0.052 | Y16: 0.04108767932
K17: =IF($D$3,$F$14,interpolate_look_up_linear(L17,'Ratings and Debt to Cap'!$N$21:$S$21,'Ratings and Debt to Cap'!$N$22:$S$22)) -> 0.9670253165 | L17: 0.8 | M17: 0.8 | N17: 0.052 | O17: 0.05868101266 | P17: 0.2 | Q17: 0.24 | R17: 0.2631578947 | S17: 0.7368421053 | T17: 0.03329316456 | U17: 0.3323291139 | V17: 0.3323291139 | W17: 0.03952 | X17: 0.052 | Y17: 0.03329316456
K18: =IF($D$3,$F$14,interpolate_look_up_linear(L18,'Ratings and Debt to Cap'!$N$21:$S$21,'Ratings and Debt to Cap'!$N$22:$S$22)) -> 0.9670253165 | L18: 0.9 | M18: 0.8 | N18: 0.052 | O18: 0.05868101266 | P18: 0.1 | Q18: 0.27 | R18: 0.1369863014 | S18: 0.8630136986 | T18: 0.009909620253 | U18: =(T18-$L$3)/$L$4 -> -0.2522594937 | V18: -0.2522594937 | W18: 0.03796 | X18: 0.052 | Y18: 0.009909620253
L21: Ku = Net D/Net Cap * Kd + E/Net Cap * Ke
L23: Be = (Bu - Bd * Net Debt/Net Cap)/E/Net Cap

Sheet Unlever and Re-lever Beta
H1: Re-levering | K1: Gross Equity | L1: =1-I2 -> 0.65 | N1: Debt Beta | O1: =IF(C2,F2,interpolate_look_up_linear(I2,'Ratings and Debt to Cap'!M20:S20,'Ratings and Debt to Cap'!M22:S22)) -> 0.1
B2: Constant Debt Beta | C2: TRUE | F2: 0.1 | H2: Gross Debt/Capital | I2: 0.35 | K2: Tax Effect | L2: =I3*I2 -> 0.14 | N2: Equity Beta | O2: =(1-O1*L4)/L3 -> 1.290769231
B3: EMRP | C3: ='Data on Credit Spreads'!G5 -> 0.04 | H3: Tax Rate | I3: 0.4 | K3: Net Equity | L3: =L1/(1-L2) -> 0.7558139535 | N3: Cost of Equity | O3: =O2*C3+C4 -> 0.07163076923
B4: Rf | C4: ='Ke and Bd - No Tax Case'!L3 -> 0.02 | H4: Beta on Assets | I4: =AVERAGE(L8:L24) -> 0.6561577561 | K4: Net Debt | L4: =1-L3 -> 0.2441860465
B5: Cost of Equity and Overall Cost of Capital from CAPM
A6: Source | E6: Gross | G6: Gross | H6: Tax | I6: Net Equity | J6: Net Debt | K6: Debt
A7: Row # | D7: Equity Beta | E7: Debt/Capital | F7: Tax Rate | G7: Equity/Capital | H7: Shield | I7: Capital | J7: Capital | K7: Beta | L7: Asset Beta
A8: 8 | B8: Anheuser-Busch Inbev SA (USD) | D8: 1.14 | E8: 0.2302301117 | F8: 0.2083704363 | G8: =1-E8 -> 0.7697698883 | H8: =F8*E8 -> 0.04797314883 | I8: =G8/(1-H8) -> 0.80855901 | J8: =1-I8 -> 0.19144099 | K8: =IF($C$2,$F$2,interpolate_look_up_linear(E8,'Ratings and Debt to Cap'!$M$21:$S$21,'Ratings and Debt to Cap'!$M$22:$S$22)) -> 0.1 | L8: =K8*J8+I8*D8 -> 0.9409013704
A9: 9 | B9: Ambev SA (USD,BRL) | D9: 0.73 | E9: -0.00705339204 | F9: 0.2198667474 | G9: =1-E9 -> 1.007053392 | H9: =F9*E9 -> -0.001550806366 | I9: =G9/(1-H9) -> 1.005494065 | J9: =1-I9 -> -0.005494065442 | K9: =IF($C$2,$F$2,interpolate_look_up_linear(E9,'Ratings and Debt to Cap'!$M$21:$S$21,'Ratings and Debt to Cap'!$M$22:$S$22)) -> 0.1 | L9: =K9*J9+I9*D9 -> 0.7334612612
A10: 10 | B10: SAB Miller | D10: 0.72 | E10: 0.11064843 | F10: 0.3902397959 | G10: 0.88935157 | H10: 0.04317942073 | I10: 0.9294862478 | J10: 0.07051375221 | K10: =IF($C$2,$F$2,interpolate_look_up_linear(E10,'Ratings and Debt to Cap'!$M$21:$S$21,'Ratings and Debt to Cap'!$M$22:$S$22)) -> 0.1 | L10: 0.6762814736
A11: 11 | B11: Molson Coors Brewing Company | D11: 0.87 | E11: 0.002018303592 | F11: 0.15 | G11: 0.9979816964 | H11: 0.0003027455387 | I11: 0.9982839224 | J11: 0.001716077588 | K11: =IF($C$2,$F$2,interpolate_look_up_linear(E11,'Ratings and Debt to Cap'!$M$21:$S$21,'Ratings and Debt to Cap'!$M$22:$S$22)) -> 0.1 | L11: 0.8686786203
A12: 13 | B12: Boston Beer | D12: 0.65 | E12: -0.01978958464 | F12: 0.365137733 | G12: 1.019789585 | H12: -0.007225924075 | I12: 1.012473528 | J12: -0.0124735278 | K12: =IF($C$2,$F$2,interpolate_look_up_linear(E12,'Ratings and Debt to Cap'!$M$21:$S$21,'Ratings and Debt to Cap'!$M$22:$S$22)) -> 0.1 | L12: 0.6568604403
A13: 14 | B13: Constellation Brands | D13: 0.26 | E13: 0.2825725022 | F13: 0.2937333333 | G13: 0.7174274978 | H13: 0.08300096297 | I13: 0.7823645052 | J13: 0.2176354948 | K13: =IF($C$2,$F$2,interpolate_look_up_linear(E13,'Ratings and Debt to Cap'!$M$21:$S$21,'Ratings and Debt to Cap'!$M$22:$S$22)) -> 0.1 | L13: 0.2251783208
A14: 15 | B14: Craft Brew Alliance | D14: 0.7 | E14: 0.08699516215 | F14: 0.4032258065 | G14: 0.9130048378 | H14: 0.03507869442 | I14: 0.9461961639 | J14: 0.05380383606 | K14: =IF($C$2,$F$2,interpolate_look_up_linear(E14,'Ratings and Debt to Cap'!$M$21:$S$21,'Ratings and Debt to Cap'!$M$22:$S$22)) -> 0.1 | L14: 0.6677176984
A15: 16 | B15: Willamett Valley | D15: 0.82 | E15: -0.0315270936 | F15: 0.4025157233 | G15: 1.031527094 | H15: -0.01269015088 | I15: 1.018600895 | J15: -0.01860089456 | K15: =IF($C$2,$F$2,interpolate_look_up_linear(E15,'Ratings and Debt to Cap'!$M$21:$S$21,'Ratings and Debt to Cap'!$M$22:$S$22)) -> 0.1 | L15: 0.8333926441
A16: 17 | B16: Coca Cola | D16: 1.1 | E16: 0.1977586139 | F16: 0.3088934148 | G16: 0.8022413861 | H16: 0.06108633356 | I16: 0.8544357322 | J16: 0.1455642678 | K16: =IF($C$2,$F$2,interpolate_look_up_linear(E16,'Ratings and Debt to Cap'!$M$21:$S$21,'Ratings and Debt to Cap'!$M$22:$S$22)) -> 0.1 | L16: 0.9544357322
A17: 18 | B17: Coca Cola Botteling | D17: 0.01 | E17: 0.8003654354 | F17: 0.3438256659 | G17: 0.1996345646 | H17: 0.2751861788 | I17: 0.2754287498 | J17: 0.7245712502 | K17: =IF($C$2,$F$2,interpolate_look_up_linear(E17,'Ratings and Debt to Cap'!$M$21:$S$21,'Ratings and Debt to Cap'!$M$22:$S$22)) -> 0.1 | L17: 0.07521141252
A18: 19 | B18: Cott | D18: 0.83 | E18: 0.8533381402 | F18: 0.5 | G18: 0.1466618598 | H18: 0.4266690701 | I18: 0.2558066417 | J18: 0.7441933583 | K18: =IF($C$2,$F$2,interpolate_look_up_linear(E18,'Ratings and Debt to Cap'!$M$21:$S$21,'Ratings and Debt to Cap'!$M$22:$S$22)) -> 0.1 | L18: 0.2867388484
A19: 20 | B19: Dr Pepper | D19: 0.62 | E19: 0.1597982282 | F19: 0.3559322034 | G19: 0.8402017718 | H19: 0.05687733546 | I19: 0.8908722093 | J19: 0.1091277907 | K19: =IF($C$2,$F$2,interpolate_look_up_linear(E19,'Ratings and Debt to Cap'!$M$21:$S$21,'Ratings and Debt to Cap'!$M$22:$S$22)) -> 0.1 | L19: 0.5632535488
A20: 22 | B20: Pepsi Co | D20: 0.69 | E20: 0.1452911048 | F20: 0.2607526882 | G20: 0.8547088952 | H20: 0.03788504615 | I20: 0.8883646302 | J20: 0.1116353698 | K20: =IF($C$2,$F$2,interpolate_look_up_linear(E20,'Ratings and Debt to Cap'!$M$21:$S$21,'Ratings and Debt to Cap'!$M$22:$S$22)) -> 0.1 | L20: 0.6241351318
A21: 23 | B21: Heineken | D21: 0.9 | E21: 0.5428701669 | F21: 0.2610486891 | G21: 0.4571298331 | H21: 0.1417155454 | I21: 0.5326087763 | J21: 0.4673912237 | K21: =IF($C$2,$F$2,interpolate_look_up_linear(E21,'Ratings and Debt to Cap'!$M$21:$S$21,'Ratings and Debt to Cap'!$M$22:$S$22)) -> 0.1 | L21: 0.5260870211
A22: 25 | B22: Kirin Holdings Company, Limited | D22: 0.52 | E22: 0.449130567 | F22: 0.5 | G22: 0.550869433 | H22: 0.2245652835 | I22: 0.7104007872 | J22: 0.2895992128 | K22: =IF($C$2,$F$2,interpolate_look_up_linear(E22,'Ratings and Debt to Cap'!$M$21:$S$21,'Ratings and Debt to Cap'!$M$22:$S$22)) -> 0.1 | L22: 0.3983683306
A23: 26 | B23: Tsingtao Brewery Company Limited | D23: 1.27 | E23: -0.2900103141 | F23: 0.2909323843 | G23: 1.290010314 | H23: -0.08437339217 | I23: 1.189636636 | J23: -0.1896366357 | K23: =IF($C$2,$F$2,interpolate_look_up_linear(E23,'Ratings and Debt to Cap'!$M$21:$S$21,'Ratings and Debt to Cap'!$M$22:$S$22)) -> 0.1 | L23: 1.491874864
A24: 27 | B24: Diageo | D24: 0.72 | E24: 0.1690192477 | F24: 0.1878787879 | G24: 0.8309807523 | H24: 0.03175513138 | I24: 0.8582340886 | J24: 0.1417659114 | K24: =IF($C$2,$F$2,interpolate_look_up_linear(E24,'Ratings and Debt to Cap'!$M$21:$S$21,'Ratings and Debt to Cap'!$M$22:$S$22)) -> 0.1 | L24: 0.6321051349

Sheet Cost of Capital from Article
B22: Debt | C22: 0.375
B24: Rf | C24: 0.055
B25: Tax | C25: 0.35
B26: EMRP | C26: 0.04
B27: Be | C27: 1
B28: Bd | C28: 0.1
B30: Int Rate | C30: =C24+C26*C28 -> 0.059
B31: Equity Cost | C31: =C27*C26+C24 -> 0.095
C33: Amt | D33: Pct | E33: Cost | F33: At Cost | G33: WACC
B34: Equity | C34: 10000 | D34: =C34/$C$36 -> 0.625 | E34: =C31 -> 0.095 | F34: =E34 -> 0.095 | G34: =F34*D34 -> 0.059375
B35: Debt | C35: 6000 | D35: =C35/$C$36 -> 0.375 | E35: =C30 -> 0.059 | F35: =E35*(1-C25) -> 0.03835 | G35: =F35*D35 -> 0.01438125
C36: =SUM(C34:C35) -> 16000 | G36: =SUM(G34:G35) -> 0.07375625
B38: BU
C39: Amt | D39: Pct | E39: Beta | F39: Weight
B40: Equity | C40: 10000 | D40: =C40/C42 -> 0.625 | E40: =C27 -> 1 | F40: =E40*D40 -> 0.625
B41: Debt | C41: 6000 | D41: =C41/C42 -> 0.375 | E41: =C28 -> 0.1 | F41: =E41*D41 -> 0.0375
C42: =SUM(C40:C41) -> 16000 | F42: =SUM(F40:F41) -> 0.6625
B44: Tax Shield | D44: =D41 -> 0.375 | E44: =C25 -> 0.35 | F44: =E35 -> 0.059 | G44: =D44*E44*F44 -> 0.00774375
B46: Ku | G46: =G44+G36 -> 0.0815
B49: Initial Investment | E49: 100
B50: After Tax All Equity Return | E50: 0.075
B51: Debt to Capital | E51: 0.6
B52: Debt Beta | E52: 0.15 | F52: =E52*C26+C24 -> 0.061 | G52: =F52-C24 -> 0.006
B55: Re-Levering
C57: Amt | D57: Pct | E57: Cost | F57: At Cost | G57: WACC
B58: Equity | C58: =E49 -> 100 | D58: =C58/C60 -> 0.625 | E58: =F58 -> 0.10661 | F58: =G58/D58 -> 0.10661 | G58: =G60-G59 -> 0.06663125
B59: Debt | C59: =C58*E51 -> 60 | D59: =C59/C60 -> 0.375 | E59: =F52 -> 0.061 | F59: =E59*(1-$E$44) -> 0.03965 | G59: =F59*D59 -> 0.01486875
C60: =SUM(C58:C59) -> 160 | G60: =G46 -> 0.0815

Sheet Re-lever Beta
J20: Tax Rate | K20: ='Cost of Capital from Article'!C25 -> 0.35
B21: Comparable Company | D21: Pct | E21: Beta | F21: Weighted | J21: Comparable Company | L21: Pct | M21: Beta | N21: Weighted | S21: Be = Bu + (1-t) x (Bu-Bd) x D/E
B22: Equity | C22: ='Cost of Capital from Article'!C34 -> 10000 | D22: =C22/C24 -> 0.625 | E22: ='Cost of Capital from Article'!C27 -> 1 | F22: =D22*E22 -> 0.625 | J22: Equity | K22: =C22 -> 10000 | L22: =K22/K24 -> 0.625 | M22: =E22 -> 1 | N22: =L22*M22 -> 0.625 | S22: Be = Bu + (Bu-Bd) x D/E x (1-t)
B23: Debt | C23: ='Cost of Capital from Article'!C35 -> 6000 | D23: =C23/C24 -> 0.375 | E23: ='Cost of Capital from Article'!C28 -> 0.1 | F23: =D23*E23 -> 0.0375 | J23: Debt | K23: =C23 -> 6000 | L23: =K23/K24 -> 0.375 | M23: ='Cost of Capital from Article'!K28 -> 0 | N23: =L23*M23 -> 0 | S23: Be = Bu + Bu x D/E x (1-t) -Bd x D/E x (1-t)
B24: Assets | C24: ='Cost of Capital from Article'!C36 -> 16000 | F24: =SUM(F22:F23) -> 0.6625 | J24: Assets | K24: =C24 -> 16000 | N24: =SUM(N22:N23) -> 0.625 | S24: Be = Bu x ( 1 + D/E x (1-t)) -Bd x D/E x (1-t)
S25: Bu x ( 1 + D/E x (1-t)) = Be + Bd x D/E x (1-t)
J26: Beta Unlevered = 1/[1+D/E x (1-t)] x Beta Equity | S26: Bu = (Be + Bd x D/E x (1-t)) / ( 1 + D/E x (1-t)) | AA26: Bu = (E/(Vl-t*d))*Be + (D/(Vl-t*d))*Bd * (1-t)
B27: Re-Levering | D27: Pct | E27: Cost
B28: Equity | C28: ='Cost of Capital from Article'!C58 -> 100 | D28: =C28/$C$30 -> 0.625 | J28: D/E | L28: =K23/K22 -> 0.6 | S28: Be | T28: =L30 -> 1 | AA28: Be | AB28: =T28 -> 1
B29: Debt | C29: ='Cost of Capital from Article'!C59 -> 60 | D29: =C29/$C$30 -> 0.375 | J29: 1-t | L29: =1-K20 -> 0.65 | S29: Bd | T29: =E23 -> 0.1 | AA29: E/(Vl-t*d) | AB29: =(C28/(C30-K20*C29)) -> 0.7194244604
C30: =SUM(C28:C29) -> 160 | J30: Be | L30: =M22 -> 1 | S30: D/E | T30: =L28 -> 0.6 | AA30: Bd | AB30: =T29 -> 0.1
J31: 1/[1+D/E x (1-t)] | L31: =1/(1+L28*L29) -> 0.7194244604 | S31: 1-t | T31: =L29 -> 0.65 | AA31: 1-t | AB31: =T31 -> 0.65
J32: Bu | L32: =L30*L31 -> 0.7194244604 | S32: D/E x (1-t) | T32: =T30*T31 -> 0.39 | AA32: D/(Vl-t*d) | AB32: =C29/(C30-C29*K20) -> 0.4316546763
J34: Check | S34: Bu | T34: =(T28+T29*T32)/(1+T32) -> 0.7474820144 | AA34: Bu | AB34: =AB29*AB28+AB32*AB30*AB31 -> 0.7474820144
J35: Beta Equity = [1+D/E x (1-t)] x Beta Unlevered
J36: D/E | L36: =K23/K22 -> 0.6 | S36: Check
J37: 1-t | L37: =L29 -> 0.65 | S37: Bu | T37: =T34 -> 0.7474820144
J38: Be | L38: =(1+L36*L37)*L32 -> 1 | S38: 1-t | T38: =T31 -> 0.65
S39: Be | T39: =T37+T38*(T34-T29)*T30 -> 1

Sheet Sheet1

Sheet Sheet5
